[Event "Titled Tuesday Blitz May 24 Early 2022"]
[White "Clawitter, Craig"]
[Black "Piliczewski, Bogusz"]
[WhiteFideId "2023105"]
[BlackFideId "1104144"]
[WhiteElo "2203"]
[BlackElo "1896"]
[Result "1-0"]
[Round "10"]
[TimeControl "180+1"]
[Date "2022.05.25"]
[WhiteClock "0:01:06"]
[BlackClock "0:00:05"]

1. e4 {[%clk 0:03:00]}  c6 {[%clk 0:02:56]} 2. Nf3 {[%clk 0:03:00]}  d5 {[%clk 0:02:55]} 3. e5 {[%clk 0:03:00]}  Bg4 {[%clk 0:02:53]} 4. d4 {[%clk 0:03:00]}  e6 {[%clk 0:02:53]} 5. c3 {[%clk 0:03:01]}  c5 {[%clk 0:02:52]} 6. dxc5 {[%clk 0:03:02]}  Bxc5 {[%clk 0:02:51]} 7. Qa4+ {[%clk 0:03:02]}  Nc6 {[%clk 0:02:24]} 8. Qxg4 {[%clk 0:03:00]}  g6 {[%clk 0:02:24]} 9. Bd3 {[%clk 0:02:58]}  Qc7 {[%clk 0:02:22]} 10. Qf4 {[%clk 0:02:49]}  Nge7 {[%clk 0:02:12]} 11. O-O {[%clk 0:02:40]}  O-O-O {[%clk 0:02:11]} 12. b4 {[%clk 0:02:31]}  Bb6 {[%clk 0:02:02]} 13. a4 {[%clk 0:02:30]}  a5 {[%clk 0:01:55]} 14. b5 {[%clk 0:02:25]}  Nb8 {[%clk 0:01:51]} 15. Be3 {[%clk 0:02:22]}  Bxe3 {[%clk 0:01:44]} 16. Qxe3 {[%clk 0:02:19]}  b6 {[%clk 0:01:43]} 17. c4 {[%clk 0:02:07]}  Nd7 {[%clk 0:01:39]} 18. Nc3 {[%clk 0:01:58]}  d4 {[%clk 0:01:31]} 19. Nxd4 {[%clk 0:01:51]}  Nxe5 {[%clk 0:01:19]} 20. Be2 {[%clk 0:01:42]}  Nxc4 {[%clk 0:01:09]} 21. Bxc4 {[%clk 0:01:40]}  Qxc4 {[%clk 0:01:09]} 22. Nc6 {[%clk 0:01:25]}  Nxc6 {[%clk 0:00:19]} 23. bxc6 {[%clk 0:01:24]}  Qxc6 {[%clk 0:00:20]} 24. Rfc1 {[%clk 0:01:15]}  Kb7 {[%clk 0:00:15]} 25. Nb5 {[%clk 0:01:13]}  Qd7 {[%clk 0:00:05]} 26. Rc7+ {[%clk 0:01:10]}  Qxc7 {[%clk 0:00:05]} 27. Nxc7 {[%clk 0:01:11]}  Kxc7 {[%clk 0:00:05]} 28. Qf4+ {[%clk 0:01:06]} 1-0


[Site "https://www.chess.com"]

[Event "Titled Tuesday Blitz May 24 Early 2022"]
[White "Domingo Nunez, Ruben"]
[Black "Papasimakopoulos, Alexandros"]
[WhiteFideId "22245570"]
[BlackFideId "4244125"]
[WhiteElo "2376"]
[BlackElo "2340"]
[Result "1-0"]
[Round "10"]
[TimeControl "180+1"]
[Date "2022.05.25"]
[WhiteClock "0:00:06"]
[BlackClock "0:00:49"]

1. d4 {[%clk 0:03:00]}  e6 {[%clk 0:02:55]} 2. g3 {[%clk 0:02:55]}  d5 {[%clk 0:02:55]} 3. Bg2 {[%clk 0:02:55]}  f5 {[%clk 0:02:53]} 4. Nh3 {[%clk 0:02:51]}  Nf6 {[%clk 0:02:53]} 5. f3 {[%clk 0:02:51]}  c5 {[%clk 0:02:52]} 6. e3 {[%clk 0:02:51]}  Nc6 {[%clk 0:02:52]} 7. O-O {[%clk 0:02:51]}  Bd6 {[%clk 0:02:52]} 8. c3 {[%clk 0:02:51]}  O-O {[%clk 0:02:52]} 9. Na3 {[%clk 0:02:49]}  e5 {[%clk 0:02:44]} 10. Nb5 {[%clk 0:02:48]}  e4 {[%clk 0:02:39]} 11. Nxd6 {[%clk 0:02:46]}  Qxd6 {[%clk 0:02:40]} 12. b3 {[%clk 0:02:46]}  cxd4 {[%clk 0:02:27]} 13. exd4 {[%clk 0:02:41]}  exf3 {[%clk 0:02:21]} 14. Qxf3 {[%clk 0:02:28]}  Ne4 {[%clk 0:02:19]} 15. Nf4 {[%clk 0:02:02]}  Be6 {[%clk 0:02:18]} 16. a4 {[%clk 0:01:51]}  Qd7 {[%clk 0:01:58]} 17. Ba3 {[%clk 0:01:18]}  Rf7 {[%clk 0:01:58]} 18. Rae1 {[%clk 0:00:46]}  Rc8 {[%clk 0:01:56]} 19. Nd3 {[%clk 0:00:37]}  b6 {[%clk 0:01:53]} 20. Qe3 {[%clk 0:00:31]}  Rf6 {[%clk 0:01:44]} 21. Rc1 {[%clk 0:00:29]}  h6 {[%clk 0:01:35]} 22. Bh3 {[%clk 0:00:23]}  Qe8 {[%clk 0:01:32]} 23. c4 {[%clk 0:00:16]}  f4 {[%clk 0:01:18]} 24. Bxe6+ {[%clk 0:00:15]}  Qxe6 {[%clk 0:01:11]} 25. Nxf4 {[%clk 0:00:15]}  Rxf4 {[%clk 0:01:11]} 26. Rxf4 {[%clk 0:00:16]}  Re8 {[%clk 0:01:09]} 27. Re1 {[%clk 0:00:13]}  Qc8 {[%clk 0:00:54]} 28. cxd5 {[%clk 0:00:12]}  Nf6 {[%clk 0:00:54]} 29. Qf2 {[%clk 0:00:06]}  Nxd5 {[%clk 0:00:50]} 30. Rxe8+ {[%clk 0:00:05]}  Qxe8 {[%clk 0:00:49]} 31. Rf8+ {[%clk 0:00:06]} 1-0


[Site "https://www.chess.com"]

[Event "Titled Tuesday Blitz May 24 Early 2022"]
[White "Dubov, Daniil"]
[Black "Makhnev, Denis"]
[WhiteFideId "24126055"]
[BlackFideId "13707647"]
[WhiteElo "2791"]
[BlackElo "2501"]
[Result "1-0"]
[Round "10"]
[TimeControl "180+1"]
[Date "2022.05.24"]
[WhiteClock "0:00:07"]
[BlackClock "0:00:11"]

1. e4 {[%clk 0:03:00]}  c6 {[%clk 0:02:59]} 2. d3 {[%clk 0:03:00]}  d5 {[%clk 0:02:59]} 3. Nd2 {[%clk 0:02:58]}  e5 {[%clk 0:02:55]} 4. Ngf3 {[%clk 0:02:59]}  Bd6 {[%clk 0:02:55]} 5. g3 {[%clk 0:02:59]}  Nf6 {[%clk 0:02:55]} 6. Bg2 {[%clk 0:03:00]}  O-O {[%clk 0:02:56]} 7. O-O {[%clk 0:03:00]}  Re8 {[%clk 0:02:56]} 8. Re1 {[%clk 0:03:01]}  Nbd7 {[%clk 0:02:55]} 9. b3 {[%clk 0:03:01]}  Qc7 {[%clk 0:02:50]} 10. Bb2 {[%clk 0:03:00]}  dxe4 {[%clk 0:02:42]} 11. Nxe4 {[%clk 0:02:50]}  Nxe4 {[%clk 0:02:42]} 12. Rxe4 {[%clk 0:02:51]}  Nf6 {[%clk 0:02:40]} 13. Re1 {[%clk 0:02:51]}  Bg4 {[%clk 0:02:40]} 14. h3 {[%clk 0:02:50]}  Bh5 {[%clk 0:02:40]} 15. Qd2 {[%clk 0:02:47]}  Rad8 {[%clk 0:02:39]} 16. Nh4 {[%clk 0:02:43]}  Qb6 {[%clk 0:02:16]} 17. Nf5 {[%clk 0:02:37]}  Bc7 {[%clk 0:01:48]} 18. Qg5 {[%clk 0:02:23]}  Bg6 {[%clk 0:01:48]} 19. Re2 {[%clk 0:02:22]}  Re6 {[%clk 0:01:42]} 20. Ne3 {[%clk 0:02:14]}  Qb4 {[%clk 0:01:15]} 21. Nc4 {[%clk 0:02:07]}  h6 {[%clk 0:01:13]} 22. Qh4 {[%clk 0:02:00]}  Rde8 {[%clk 0:00:40]} 23. Rae1 {[%clk 0:01:58]}  Nd7 {[%clk 0:00:25]} 24. d4 {[%clk 0:01:39]}  Bd8 {[%clk 0:00:14]} 25. Qg4 {[%clk 0:01:39]}  h5 {[%clk 0:00:14]} 26. Qf3 {[%clk 0:01:38]}  e4 {[%clk 0:00:09]} 27. Qf4 {[%clk 0:01:38]}  Qe7 {[%clk 0:00:08]} 28. Ne5 {[%clk 0:01:36]}  Nxe5 {[%clk 0:00:07]} 29. dxe5 {[%clk 0:01:37]}  Ba5 {[%clk 0:00:08]} 30. Rd1 {[%clk 0:01:08]}  Bc7 {[%clk 0:00:08]} 31. Red2 {[%clk 0:01:09]}  Bxe5 {[%clk 0:00:08]} 32. Bxe5 {[%clk 0:01:09]}  Rxe5 {[%clk 0:00:09]} 33. Rd7 {[%clk 0:01:10]}  Qb4 {[%clk 0:00:09]} 34. Bf1 {[%clk 0:01:06]}  a5 {[%clk 0:00:08]} 35. Bc4 {[%clk 0:00:59]}  Rf5 {[%clk 0:00:08]} 36. Qe3 {[%clk 0:00:51]}  b5 {[%clk 0:00:08]} 37. Be2 {[%clk 0:00:49]}  a4 {[%clk 0:00:08]} 38. c4 {[%clk 0:00:29]}  axb3 {[%clk 0:00:07]} 39. axb3 {[%clk 0:00:30]}  Qc5 {[%clk 0:00:08]} 40. R1d4 {[%clk 0:00:27]}  Rfe5 {[%clk 0:00:05]} 41. Kg2 {[%clk 0:00:24]}  h4 {[%clk 0:00:04]} 42. cxb5 {[%clk 0:00:16]}  hxg3 {[%clk 0:00:02]} 43. b4 {[%clk 0:00:15]}  Qb6 {[%clk 0:00:02]} 44. Qxg3 {[%clk 0:00:09]}  cxb5 {[%clk 0:00:02]} 45. R4d6 {[%clk 0:00:09]}  Qb8 {[%clk 0:00:02]} 46. h4 {[%clk 0:00:08]}  R5e7 {[%clk 0:00:01]} 47. Rxe7 {[%clk 0:00:05]}  Rxe7 {[%clk 0:00:02]} 48. Rxg6 {[%clk 0:00:06]}  Qf8 {[%clk 0:00:02]} 49. Rg4 {[%clk 0:00:06]}  f5 {[%clk 0:00:03]} 50. Rf4 {[%clk 0:00:05]}  Re5 {[%clk 0:00:03]} 51. Bd1 {[%clk 0:00:05]}  Qxb4 {[%clk 0:00:03]} 52. Qb3+ {[%clk 0:00:04]}  Kh7 {[%clk 0:00:04]} 53. Qxb4 {[%clk 0:00:03]}  Kh6 {[%clk 0:00:04]} 54. Qd4 {[%clk 0:00:04]}  Re6 {[%clk 0:00:05]} 55. Qe3 {[%clk 0:00:04]}  Rf6 {[%clk 0:00:05]} 56. Rxf5+ {[%clk 0:00:05]}  Kg6 {[%clk 0:00:06]} 57. Rxf6+ {[%clk 0:00:05]}  Kxf6 {[%clk 0:00:07]} 58. Qxe4 {[%clk 0:00:06]}  g6 {[%clk 0:00:08]} 59. Qb4 {[%clk 0:00:06]}  Kg7 {[%clk 0:00:09]} 60. Qxb5 {[%clk 0:00:07]}  Kh6 {[%clk 0:00:10]} 61. Qb2 {[%clk 0:00:07]}  g5 {[%clk 0:00:11]} 62. Qf6+ {[%clk 0:00:07]}  Kh7 {[%clk 0:00:11]} 63. Qxg5 {[%clk 0:00:07]} 1-0


[Site "https://www.chess.com"]

[Event "Titled Tuesday Blitz May 24 Early 2022"]
[White "Galiana Fernandez, Adrian"]
[Black "Warchol, Kamil"]
[WhiteFideId "32010150"]
[BlackFideId "21858241"]
[WhiteElo "2133"]
[BlackElo "1951"]
[Result "0-1"]
[Round "10"]
[TimeControl "180+1"]
[Date "2022.05.25"]
[WhiteClock "0:00:02"]
[BlackClock "0:00:05"]

1. Nf3 {[%clk 0:03:00]}  d5 {[%clk 0:02:59]} 2. g3 {[%clk 0:03:01]}  Nf6 {[%clk 0:02:56]} 3. Bg2 {[%clk 0:03:01]}  c6 {[%clk 0:02:55]} 4. O-O {[%clk 0:03:00]}  Bf5 {[%clk 0:02:54]} 5. c4 {[%clk 0:02:59]}  e6 {[%clk 0:02:51]} 6. Qb3 {[%clk 0:02:59]}  Qb6 {[%clk 0:02:48]} 7. d3 {[%clk 0:02:59]}  Nbd7 {[%clk 0:02:44]} 8. Be3 {[%clk 0:02:56]}  Bc5 {[%clk 0:02:30]} 9. Bxc5 {[%clk 0:02:54]}  Nxc5 {[%clk 0:02:31]} 10. Qxb6 {[%clk 0:02:52]}  axb6 {[%clk 0:02:30]} 11. Nc3 {[%clk 0:02:52]}  O-O {[%clk 0:02:27]} 12. a4 {[%clk 0:01:51]}  Na6 {[%clk 0:02:22]} 13. Nh4 {[%clk 0:01:46]}  Bg6 {[%clk 0:02:02]} 14. Nxg6 {[%clk 0:01:44]}  hxg6 {[%clk 0:02:03]} 15. e3 {[%clk 0:01:36]}  Nb4 {[%clk 0:01:56]} 16. Rfd1 {[%clk 0:01:34]}  Rfd8 {[%clk 0:01:54]} 17. Kf1 {[%clk 0:01:31]}  dxc4 {[%clk 0:01:47]} 18. dxc4 {[%clk 0:01:30]}  Nd3 {[%clk 0:01:47]} 19. b3 {[%clk 0:01:09]}  Nc5 {[%clk 0:01:34]} 20. b4 {[%clk 0:01:03]}  Rxd1+ {[%clk 0:01:29]} 21. Rxd1 {[%clk 0:01:02]}  Ncd7 {[%clk 0:01:09]} 22. f4 {[%clk 0:00:39]}  Kf8 {[%clk 0:01:01]} 23. e4 {[%clk 0:00:38]}  Ke7 {[%clk 0:01:00]} 24. e5 {[%clk 0:00:36]}  Ng4 {[%clk 0:00:55]} 25. Ke2 {[%clk 0:00:36]}  Nxh2 {[%clk 0:00:55]} 26. Rh1 {[%clk 0:00:12]}  Ng4 {[%clk 0:00:50]} 27. Bf3 {[%clk 0:00:11]}  Nh6 {[%clk 0:00:41]} 28. g4 {[%clk 0:00:11]}  Rd8 {[%clk 0:00:35]} 29. Rd1 {[%clk 0:00:07]}  Ng8 {[%clk 0:00:29]} 30. Ne4 {[%clk 0:00:07]}  Ra8 {[%clk 0:00:25]} 31. Nc3 {[%clk 0:00:06]}  f6 {[%clk 0:00:23]} 32. exf6+ {[%clk 0:00:06]}  gxf6 {[%clk 0:00:18]} 33. Ke3 {[%clk 0:00:05]}  e5 {[%clk 0:00:17]} 34. Be4 {[%clk 0:00:03]}  exf4+ {[%clk 0:00:16]} 35. Kxf4 {[%clk 0:00:03]}  Ne5 {[%clk 0:00:17]} 36. g5 {[%clk 0:00:03]}  Nxc4 {[%clk 0:00:14]} 37. Bxg6 {[%clk 0:00:03]}  fxg5+ {[%clk 0:00:08]} 38. Kxg5 {[%clk 0:00:03]}  Rd8 {[%clk 0:00:09]} 39. Re1+ {[%clk 0:00:03]}  Kd6 {[%clk 0:00:08]} 40. Bf5 {[%clk 0:00:03]}  Ne7 {[%clk 0:00:05]} 41. Re6+ {[%clk 0:00:02]}  Kc7 {[%clk 0:00:06]} 42. Rxe7+ {[%clk 0:00:03]}  Kb8 {[%clk 0:00:07]} 43. Rd7 {[%clk 0:00:02]}  Rg8+ {[%clk 0:00:07]} 44. Kf4 {[%clk 0:00:03]}  Rh8 {[%clk 0:00:05]} 45. Ke4 {[%clk 0:00:03]}  Rh4+ {[%clk 0:00:05]} 46. Kd3 {[%clk 0:00:03]}  Ne5+ {[%clk 0:00:06]} 47. Kc2 {[%clk 0:00:03]}  Nxd7 {[%clk 0:00:06]} 48. Bxd7 {[%clk 0:00:04]}  Rxb4 {[%clk 0:00:07]} 49. Be6 {[%clk 0:00:04]}  Rh4 {[%clk 0:00:07]} 50. Bb3 {[%clk 0:00:04]}  Kc7 {[%clk 0:00:07]} 51. Kb2 {[%clk 0:00:03]}  Kd6 {[%clk 0:00:07]} 52. Kc2 {[%clk 0:00:04]}  Kc5 {[%clk 0:00:08]} 53. Kb2 {[%clk 0:00:02]}  Rh2+ {[%clk 0:00:07]} 54. Ka3 {[%clk 0:00:02]}  Rh3 {[%clk 0:00:06]} 55. Nb1 {[%clk 0:00:02]}  b5 {[%clk 0:00:05]} 56. axb5 {[%clk 0:00:02]}  Kxb5 {[%clk 0:00:06]} 57. Kb2 {[%clk 0:00:02]}  Kc5 {[%clk 0:00:06]} 58. Nd2 {[%clk 0:00:02]}  b5 {[%clk 0:00:06]} 59. Kc2 {[%clk 0:00:02]}  Rh2 {[%clk 0:00:05]} 60. Kc3 {[%clk 0:00:02]}  b4+ {[%clk 0:00:05]} 61. Kc2 {[%clk 0:00:02]}  Kd4 {[%clk 0:00:05]} 0-1


[Site "https://www.chess.com"]

[Event "Titled Tuesday Blitz May 24 Early 2022"]
[White "Garv Gaur"]
[Black "Preotu, Razvan"]
[WhiteFideId "45030839"]
[BlackFideId "2613280"]
[WhiteElo "1950"]
[BlackElo "2407"]
[Result "0-1"]
[Round "10"]
[TimeControl "180+1"]
[Date "2022.05.24"]
[WhiteClock "0:00:13"]
[BlackClock "0:00:04"]

1. d4 {[%clk 0:03:00]}  Nf6 {[%clk 0:02:59]} 2. Nf3 {[%clk 0:03:01]}  g6 {[%clk 0:02:59]} 3. c4 {[%clk 0:03:01]}  Bg7 {[%clk 0:02:59]} 4. g3 {[%clk 0:03:01]}  c6 {[%clk 0:02:57]} 5. Bg2 {[%clk 0:02:57]}  d5 {[%clk 0:02:57]} 6. cxd5 {[%clk 0:02:55]}  cxd5 {[%clk 0:02:57]} 7. O-O {[%clk 0:02:55]}  O-O {[%clk 0:02:57]} 8. Nc3 {[%clk 0:02:52]}  Ne4 {[%clk 0:02:56]} 9. Bf4 {[%clk 0:02:52]}  Nc6 {[%clk 0:02:41]} 10. Qb3 {[%clk 0:02:49]}  Na5 {[%clk 0:01:59]} 11. Qb4 {[%clk 0:02:30]}  Nc6 {[%clk 0:01:36]} 12. Qb3 {[%clk 0:02:29]}  Nxc3 {[%clk 0:01:35]} 13. bxc3 {[%clk 0:02:27]}  b6 {[%clk 0:01:19]} 14. Nd2 {[%clk 0:02:16]}  e6 {[%clk 0:01:13]} 15. e4 {[%clk 0:02:15]}  Na5 {[%clk 0:01:07]} 16. Qb4 {[%clk 0:02:10]}  Bb7 {[%clk 0:01:06]} 17. Rfe1 {[%clk 0:02:06]}  Re8 {[%clk 0:01:04]} 18. exd5 {[%clk 0:01:43]}  Bxd5 {[%clk 0:01:01]} 19. Ne4 {[%clk 0:01:42]}  Nc4 {[%clk 0:00:58]} 20. Bg5 {[%clk 0:01:31]}  f6 {[%clk 0:00:58]} 21. Bf4 {[%clk 0:01:28]}  Rc8 {[%clk 0:00:53]} 22. Nd6 {[%clk 0:01:02]}  Nxd6 {[%clk 0:00:50]} 23. Bxd5 {[%clk 0:01:01]}  exd5 {[%clk 0:00:50]} 24. Bxd6 {[%clk 0:01:00]}  Qd7 {[%clk 0:00:43]} 25. Bf4 {[%clk 0:00:54]}  Bf8 {[%clk 0:00:43]} 26. Qb3 {[%clk 0:00:53]}  Qc6 {[%clk 0:00:41]} 27. Rxe8 {[%clk 0:00:48]}  Rxe8 {[%clk 0:00:42]} 28. Rc1 {[%clk 0:00:46]}  Re2 {[%clk 0:00:40]} 29. c4 {[%clk 0:00:44]}  dxc4 {[%clk 0:00:40]} 30. Qxc4+ {[%clk 0:00:36]}  Qxc4 {[%clk 0:00:40]} 31. Rxc4 {[%clk 0:00:37]}  g5 {[%clk 0:00:39]} 32. Bb8 {[%clk 0:00:35]}  Rxa2 {[%clk 0:00:38]} 33. Rc8 {[%clk 0:00:35]}  Kf7 {[%clk 0:00:35]} 34. Rc7+ {[%clk 0:00:34]}  Kg6 {[%clk 0:00:36]} 35. Bxa7 {[%clk 0:00:28]}  b5 {[%clk 0:00:31]} 36. Bc5 {[%clk 0:00:28]}  Rc2 {[%clk 0:00:26]} 37. Rc8 {[%clk 0:00:20]}  Bd6 {[%clk 0:00:17]} 38. g4 {[%clk 0:00:20]}  b4 {[%clk 0:00:16]} 39. Rc6 {[%clk 0:00:18]}  b3 {[%clk 0:00:15]} 40. Rb6 {[%clk 0:00:17]}  b2 {[%clk 0:00:10]} 41. Kg2 {[%clk 0:00:18]}  Bxc5 {[%clk 0:00:05]} 42. dxc5 {[%clk 0:00:18]}  h5 {[%clk 0:00:06]} 43. h3 {[%clk 0:00:18]}  hxg4 {[%clk 0:00:05]} 44. hxg4 {[%clk 0:00:19]}  Kf7 {[%clk 0:00:05]} 45. Kf3 {[%clk 0:00:15]}  Ke7 {[%clk 0:00:06]} 46. Ke4 {[%clk 0:00:15]}  Kd7 {[%clk 0:00:06]} 47. f3 {[%clk 0:00:14]}  Kc7 {[%clk 0:00:05]} 48. Rb3 {[%clk 0:00:13]}  Kc6 {[%clk 0:00:04]} 0-1


[Site "https://www.chess.com"]

[Event "Titled Tuesday Blitz May 24 Early 2022"]
[White "Gatterer, Florian"]
[Black "Ljukin, Sergei"]
[WhiteFideId "811688"]
[BlackFideId "14102200"]
[WhiteElo "2218"]
[BlackElo "2312"]
[Result "0-1"]
[Round "10"]
[TimeControl "180+1"]
[Date "2022.05.25"]
[WhiteClock "0:00:12"]
[BlackClock "0:01:46"]

1. f4 {[%clk 0:03:00]}  d5 {[%clk 0:02:54]} 2. Nf3 {[%clk 0:03:00]}  Nf6 {[%clk 0:02:54]} 3. g3 {[%clk 0:03:00]}  Bf5 {[%clk 0:02:54]} 4. Bg2 {[%clk 0:02:59]}  e6 {[%clk 0:02:54]} 5. O-O {[%clk 0:02:57]}  Bc5+ {[%clk 0:02:54]} 6. e3 {[%clk 0:02:49]}  Nc6 {[%clk 0:02:54]} 7. d4 {[%clk 0:02:49]}  Bb6 {[%clk 0:02:53]} 8. a4 {[%clk 0:02:48]}  a5 {[%clk 0:02:48]} 9. b3 {[%clk 0:02:37]}  Nb4 {[%clk 0:02:48]} 10. Ne1 {[%clk 0:02:26]}  c5 {[%clk 0:02:46]} 11. Bb2 {[%clk 0:02:15]}  Rc8 {[%clk 0:02:40]} 12. c3 {[%clk 0:02:13]}  Nc6 {[%clk 0:02:39]} 13. Ba3 {[%clk 0:02:12]}  Ne4 {[%clk 0:02:34]} 14. Nd3 {[%clk 0:02:04]}  cxd4 {[%clk 0:02:29]} 15. exd4 {[%clk 0:01:55]}  Nxc3 {[%clk 0:02:22]} 16. Nxc3 {[%clk 0:01:38]}  Bxd4+ {[%clk 0:02:22]} 17. Kh1 {[%clk 0:01:38]}  Bxc3 {[%clk 0:02:22]} 18. Nc5 {[%clk 0:01:08]}  Bb4 {[%clk 0:01:58]} 19. Nxb7 {[%clk 0:01:04]}  Qe7 {[%clk 0:01:57]} 20. g4 {[%clk 0:00:42]}  Bg6 {[%clk 0:01:56]} 21. f5 {[%clk 0:00:41]}  Qxb7 {[%clk 0:01:56]} 22. fxg6 {[%clk 0:00:38]}  hxg6 {[%clk 0:01:56]} 23. Rxf7 {[%clk 0:00:26]}  Qxf7 {[%clk 0:01:54]} 24. Bxb4 {[%clk 0:00:21]}  Nxb4 {[%clk 0:01:53]} 25. Qd4 {[%clk 0:00:19]}  Nc2 {[%clk 0:01:47]} 26. Qb6 {[%clk 0:00:12]}  Nxa1 {[%clk 0:01:46]} 27. Qb5+ {[%clk 0:00:12]}  Qd7 {[%clk 0:01:46]} 0-1


[Site "https://www.chess.com"]

[Event "Titled Tuesday Blitz May 24 Early 2022"]
[White "Hoffmann, Asa"]
[Black "Kalogridis, Antonios"]
[WhiteFideId "2001470"]
[BlackFideId "25833901"]
[WhiteElo "2117"]
[BlackElo "1596"]
[Result "0-1"]
[Round "10"]
[TimeControl "180+1"]
[Date "2022.05.25"]
[WhiteClock "0:00:16"]
[BlackClock "0:00:57"]

1. d4 {[%clk 0:02:38]}  e6 {[%clk 0:02:58]} 2. e4 {[%clk 0:02:35]}  d5 {[%clk 0:02:57]} 3. e5 {[%clk 0:02:35]}  c5 {[%clk 0:02:56]} 4. Nf3 {[%clk 0:02:35]}  Nc6 {[%clk 0:02:57]} 5. Bd3 {[%clk 0:02:34]}  cxd4 {[%clk 0:02:55]} 6. O-O {[%clk 0:02:33]}  Nge7 {[%clk 0:02:54]} 7. Bf4 {[%clk 0:02:32]}  Ng6 {[%clk 0:02:54]} 8. Bg3 {[%clk 0:02:32]}  Qb6 {[%clk 0:02:53]} 9. b3 {[%clk 0:02:26]}  Bd7 {[%clk 0:02:52]} 10. h4 {[%clk 0:02:26]}  O-O-O {[%clk 0:02:49]} 11. h5 {[%clk 0:02:24]}  Nge7 {[%clk 0:02:49]} 12. a3 {[%clk 0:02:23]}  Kb8 {[%clk 0:02:49]} 13. b4 {[%clk 0:02:23]}  Nf5 {[%clk 0:02:49]} 14. Bxf5 {[%clk 0:02:22]}  exf5 {[%clk 0:02:49]} 15. e6+ {[%clk 0:02:22]}  Ka8 {[%clk 0:02:46]} 16. exd7 {[%clk 0:02:22]}  Rxd7 {[%clk 0:02:47]} 17. Nbd2 {[%clk 0:02:15]}  f6 {[%clk 0:02:40]} 18. Re1 {[%clk 0:02:13]}  Be7 {[%clk 0:02:36]} 19. Nb3 {[%clk 0:02:13]}  g5 {[%clk 0:02:35]} 20. hxg6 {[%clk 0:02:09]}  hxg6 {[%clk 0:02:36]} 21. Nfxd4 {[%clk 0:02:05]}  Bd8 {[%clk 0:02:35]} 22. c3 {[%clk 0:01:58]}  Rdh7 {[%clk 0:02:31]} 23. f3 {[%clk 0:01:49]}  Ne5 {[%clk 0:02:20]} 24. Nc5 {[%clk 0:01:42]}  Bc7 {[%clk 0:02:17]} 25. Kf2 {[%clk 0:01:36]}  Qd6 {[%clk 0:02:08]} 26. Ne2 {[%clk 0:01:24]}  g5 {[%clk 0:02:02]} 27. Bxe5 {[%clk 0:01:12]}  fxe5 {[%clk 0:02:03]} 28. Qd3 {[%clk 0:00:59]}  e4 {[%clk 0:01:56]} 29. Qd4 {[%clk 0:00:58]}  exf3 {[%clk 0:01:53]} 30. gxf3 {[%clk 0:00:56]}  Qe7 {[%clk 0:01:35]} 31. Ng1 {[%clk 0:00:33]}  Qd6 {[%clk 0:01:33]} 32. f4 {[%clk 0:00:29]}  Rh2+ {[%clk 0:01:30]} 33. Kf1 {[%clk 0:00:27]}  gxf4 {[%clk 0:01:28]} 34. Rad1 {[%clk 0:00:19]}  Bb6 {[%clk 0:00:57]} 35. Qxd5 {[%clk 0:00:18]}  Bxc5 {[%clk 0:00:57]} 36. Qxd6 {[%clk 0:00:16]}  Rf2# {[%clk 0:00:57]} 0-1


[Site "https://www.chess.com"]

[Event "Titled Tuesday Blitz May 24 Early 2022"]
[White "Ianov, Viktor"]
[Black "Kruckenhauser, Arthur"]
[WhiteFideId "14102730"]
[BlackFideId "1642812"]
[WhiteElo "2152"]
[BlackElo "2243"]
[Result "1-0"]
[Round "10"]
[TimeControl "180+1"]
[Date "2022.05.25"]
[WhiteClock "0:01:37"]
[BlackClock "0:02:04"]

1. Nf3 {[%clk 0:03:00]}  f5 {[%clk 0:02:58]} 2. g3 {[%clk 0:03:00]}  Nf6 {[%clk 0:02:58]} 3. Bg2 {[%clk 0:03:01]}  e6 {[%clk 0:02:59]} 4. c4 {[%clk 0:03:01]}  Be7 {[%clk 0:02:58]} 5. O-O {[%clk 0:02:59]}  d5 {[%clk 0:02:58]} 6. d3 {[%clk 0:02:58]}  O-O {[%clk 0:02:56]} 7. Nc3 {[%clk 0:02:58]}  c6 {[%clk 0:02:57]} 8. e4 {[%clk 0:02:57]}  fxe4 {[%clk 0:02:57]} 9. dxe4 {[%clk 0:02:57]}  Nxe4 {[%clk 0:02:58]} 10. Nxe4 {[%clk 0:02:56]}  dxe4 {[%clk 0:02:59]} 11. Qxd8 {[%clk 0:02:50]}  Rxd8 {[%clk 0:02:57]} 12. Ng5 {[%clk 0:02:50]}  e5 {[%clk 0:02:57]} 13. Nxe4 {[%clk 0:02:46]}  Nd7 {[%clk 0:02:57]} 14. Be3 {[%clk 0:02:45]}  Nf6 {[%clk 0:02:56]} 15. Rfd1 {[%clk 0:02:41]}  Bg4 {[%clk 0:02:56]} 16. Rxd8+ {[%clk 0:02:37]}  Rxd8 {[%clk 0:02:55]} 17. Bxa7 {[%clk 0:02:32]}  Nxe4 {[%clk 0:02:50]} 18. Bxe4 {[%clk 0:02:31]}  Rd2 {[%clk 0:02:50]} 19. b3 {[%clk 0:02:27]}  Bb4 {[%clk 0:02:47]} 20. Be3 {[%clk 0:02:26]}  Rb2 {[%clk 0:02:46]} 21. Kg2 {[%clk 0:02:17]}  Bc3 {[%clk 0:02:40]} 22. h3 {[%clk 0:02:15]}  Be2 {[%clk 0:02:34]} 23. Rc1 {[%clk 0:02:08]}  Bd4 {[%clk 0:02:33]} 24. Rc2 {[%clk 0:02:01]}  Rxc2 {[%clk 0:02:15]} 25. Bxc2 {[%clk 0:02:00]}  h6 {[%clk 0:02:13]} 26. c5 {[%clk 0:01:50]}  Kf7 {[%clk 0:02:11]} 27. Bf5 {[%clk 0:01:50]}  Ke7 {[%clk 0:02:09]} 28. Bc8 {[%clk 0:01:49]}  Ba6 {[%clk 0:02:09]} 29. b4 {[%clk 0:01:48]}  Kd8 {[%clk 0:02:09]} 30. Bf5 {[%clk 0:01:46]}  Bc4 {[%clk 0:02:09]} 31. Bxd4 {[%clk 0:01:44]}  exd4 {[%clk 0:02:09]} 32. a3 {[%clk 0:01:44]}  Be2 {[%clk 0:02:09]} 33. f4 {[%clk 0:01:41]}  Kc7 {[%clk 0:02:03]} 34. Kf2 {[%clk 0:01:41]}  Bd1 {[%clk 0:02:03]} 35. Ke1 {[%clk 0:01:39]}  Bf3 {[%clk 0:02:03]} 36. Kd2 {[%clk 0:01:39]}  b6 {[%clk 0:02:03]} 37. Kd3 {[%clk 0:01:38]}  bxc5 {[%clk 0:02:04]} 38. bxc5 {[%clk 0:01:37]} 1-0


[Site "https://www.chess.com"]